{"text_format":"3","workbook":"xlsx","n_sheets":10,"sheets":["Реч.разв.к 5г ч2","Реч.разв.к 5г ч1","Соц.ком. к 5г ч2","Физ.разв. к 5г ч2","Физ.разв. к 5г ч1","Соц.ком.к 5г ч1","Позн.разв. к 5г ч1","Позн.разв. к 5г ч2","Худ.эст.к 5г ч1","Худ.эст.к 5г ч2"],"read":"whole","date_system":"1900"}

{"sheet":"Реч.разв.к 5г ч2","index":0,"n_rows":43,"n_cols":14,"rows_kept":43,"merged":[[0,0,0,1],[0,4,0,6],[0,8,0,10],[1,0,1,3],[1,4,1,6],[1,8,1,12],[2,0,2,3],[3,0,3,1],[3,4,3,5],[3,6,3,8],[3,9,3,10],[4,0,4,1],[4,4,4,5],[4,6,4,8],[4,9,4,10],[5,0,9,0],[5,1,9,1],[5,4,5,12],[5,13,9,13],[6,4,6,12],[7,4,7,5],[7,6,7,8],[7,10,7,12],[8,4,9,4],[8,5,9,5],[8,6,9,6],[8,7,9,7],[8,8,9,8],[8,9,9,9],[8,10,9,10],[8,11,9,11],[8,12,9,12],[40,1,40,12],[41,1,41,13],[42,1,42,13]]}
["Финальная диагностика",{"$nulls":3},"ГРУППА СРЕДНЕГО ВОЗРАСТА (4-5 лет)",{"$nulls":3},"Период проведения - окончание посещения группы среднего возраста"]
["Стартовая диагностика",{"$nulls":3},"ГРУППА СТАРШЕГО ВОЗРАСТА (5-6 лет)",{"$nulls":3},"Период проведения - начало уч. года (сентябрь) или начало посещения группы старшего возраста"]
["*- не диагностируется в данном возрасте"]
["Сформированность показателя",{"$nulls":3},"«2» показатель сформирован",null,"«1» показатель в стадии формирования",null,null,"«0» показатель не сформирован"]
["Средний уровень",{"$nulls":3},"1,8 - 2,0 норма-высокий",null,"1,0 - 1,7 норма - средний",null,null,"0,0 - 0,9 ниже нормы"]
["№","Ф.И. ребенка",null,null,"ОБРАЗОВАТЕЛЬНАЯ ОБЛАСТЬ «РЕЧЕВОЕ  РАЗВИТИЕ»",{"$nulls":8},"СРЕДНИЙ ПОКАЗАТЕЛЬ ПО РЕБЕНКУ"]
[{"$nulls":4},"Показатели возможных достижений (возрастные характеристики) к 5 годам"]
[{"$nulls":4},"Звуковая культура речи",null,"Связная речь",null,null,"ЧХЛ","Подготовка к обучению грамоте"]
[{"$nulls":4},"Ребенок правильно произносит свистящие и шипящие звуки","Ребенок четко воспроизводит фонетический и морфологический рисунок слова","Ребенок использует в речи вопросы поискового характера (почему, зачем, для чего)","Ребенок составляет описательные рассказы из 5-6 предложений о предметах, игрушках, объектах природы","Ребенок составляет повествовательные рассказы из 5-6 предложений из личного опыта","Ребенок с интересом слушает литературные тексты","Ребенок умеет сравнивать слова по протяженности","Ребенок имеет начальные умения звукового анализа слов","Ребенок узнает слова на заданный звук"]
[]
[1,{"$nulls":12},{"$f":"AVERAGE(E11:M11)","v":{"$error":"#DIV/0!"}}]
[2,{"$nulls":12},{"$error":"#DIV/0!"}]
[3,{"$nulls":12},{"$error":"#DIV/0!"}]
[4,{"$nulls":12},{"$error":"#DIV/0!"}]
[5,{"$nulls":12},{"$error":"#DIV/0!"}]
[6,{"$nulls":12},{"$error":"#DIV/0!"}]
[7,{"$nulls":12},{"$error":"#DIV/0!"}]
[8,{"$nulls":12},{"$error":"#DIV/0!"}]
[9,{"$nulls":12},{"$error":"#DIV/0!"}]
[10,{"$nulls":12},{"$error":"#DIV/0!"}]
[11,{"$nulls":12},{"$error":"#DIV/0!"}]
[12,{"$nulls":12},{"$error":"#DIV/0!"}]
[13,{"$nulls":12},{"$error":"#DIV/0!"}]
[14,{"$nulls":12},{"$error":"#DIV/0!"}]
[15,{"$nulls":12},{"$error":"#DIV/0!"}]
[16,{"$nulls":12},{"$error":"#DIV/0!"}]
[17,{"$nulls":12},{"$error":"#DIV/0!"}]
[18,{"$nulls":12},{"$error":"#DIV/0!"}]
[19,{"$nulls":12},{"$error":"#DIV/0!"}]
[20,{"$nulls":12},{"$error":"#DIV/0!"}]
[21,{"$nulls":12},{"$error":"#DIV/0!"}]
[22,{"$nulls":12},{"$error":"#DIV/0!"}]
[23,{"$nulls":12},{"$error":"#DIV/0!"}]
[24,{"$nulls":12},{"$error":"#DIV/0!"}]
[25,{"$nulls":12},{"$error":"#DIV/0!"}]
[26,{"$nulls":12},{"$error":"#DIV/0!"}]
[27,{"$nulls":12},{"$error":"#DIV/0!"}]
[28,{"$nulls":12},{"$error":"#DIV/0!"}]
[29,{"$nulls":12},{"$error":"#DIV/0!"}]
[30,{"$nulls":12},{"$error":"#DIV/0!"}]
[null,"СРЕДНИЙ ПОКАЗАТЕЛЬ ПО ГРУППЕ",{"$nulls":11},{"$f":"AVERAGE(N11:N40)","v":{"$error":"#DIV/0!"}}]
[null,"Ф.И.О, должность специалиста(ов)____________________________________________________________________________________________________________________________________________________________________________________________________________________________________"]
[null,"© Автор-составитель Кулекина И.А., СПБ, 2023"]

{"sheet":"Реч.разв.к 5г ч1","index":1,"n_rows":43,"n_cols":14,"rows_kept":43,"merged":[[0,0,0,1],[0,4,0,6],[0,8,0,10],[1,0,1,3],[1,4,1,6],[1,8,1,11],[2,0,2,3],[3,0,3,1],[3,4,3,5],[3,6,3,8],[3,9,3,10],[4,0,4,1],[4,4,4,5],[4,6,4,8],[4,9,4,10],[5,0,9,0],[5,1,9,1],[5,4,5,12],[5,13,9,13],[6,4,6,12],[7,4,7,7],[7,8,7,9],[7,10,7,12],[8,4,9,4],[8,5,9,5],[8,6,9,6],[8,7,9,7],[8,8,9,8],[8,9,9,9],[8,10,9,10],[8,11,9,11],[8,12,9,12],[40,1,40,12],[41,1,41,13],[42,1,42,13]]}
["Финальная диагностика",{"$nulls":3},"ГРУППА СРЕДНЕГО ВОЗРАСТА (4-5 лет)",{"$nulls":3},"Период проведения - окончание посещения группы среднего возраста"]
["Стартовая диагностика",{"$nulls":3},"ГРУППА СТАРШЕГО ВОЗРАСТА (5-6 лет)",{"$nulls":3},"Период проведения - начало уч. года (сентябрь) или начало посещения группы старшего возраста"]
["*- не диагностируется в данном возрасте"]
["Сформированность показателя",{"$nulls":3},"«2» показатель сформирован",null,"«1» показатель в стадии формирования",null,null,"«0» показатель не сформирован"]
["Средний уровень",{"$nulls":3},"1,8 - 2,0 норма-высокий",null,"1,0 - 1,7 норма - средний",null,null,"0,0 - 0,9 ниже нормы"]
["№","Ф.И. ребенка",null,null,"ОБРАЗОВАТЕЛЬНАЯ ОБЛАСТЬ «РЕЧЕВОЕ  РАЗВИТИЕ»",{"$nulls":8},"СРЕДНИЙ ПОКАЗАТЕЛЬ ПО РЕБЕНКУ"]
[{"$nulls":4},"Показатели возможных достижений (возрастные характеристики) к 5 годам"]
[{"$nulls":4},"Общее речевое развитие",{"$nulls":3},"Формирование словаря",null,"Грамматический строй"]
[{"$nulls":4},"Ребенок инициативен в разговоре, использует разные типы реплик и простые формы объяснительной речи","Ребенок внятно говорит, голосом средней силы, регулирует интонацию, тембр, силу голоса и ритм речи","Ребенок выразительно читает стихотворение наизусть","Ребенок участвует в коллективном разговоре, не перебивая собеседников","Ребенок использует в речи названия предметов и материалов, из которых они изготовлены","Ребенок употребляет слова, обозначающие родовые и видовые обобщения, а также лежащие в основе этих обобщений существенные признаки","Ребенок использует в речи полные, распространенные простые с однородными членами и сложноподчинённые предложения для передачи временных, пространственных, причинно-следственных связей","Ребенок правильно употребляет суффиксы и приставки при словообразовании","Ребенок использует систему окончаний существительных, прилагательных, глаголов для оформления речевого высказывания"]
[]
[1,{"$nulls":12},{"$f":"AVERAGE(E11:M11)","v":{"$error":"#DIV/0!"}}]
[2,{"$nulls":12},{"$error":"#DIV/0!"}]
[3,{"$nulls":12},{"$error":"#DIV/0!"}]
[4,{"$nulls":12},{"$error":"#DIV/0!"}]
[5,{"$nulls":12},{"$error":"#DIV/0!"}]
[6,{"$nulls":12},{"$error":"#DIV/0!"}]
[7,{"$nulls":12},{"$error":"#DIV/0!"}]
[8,{"$nulls":12},{"$error":"#DIV/0!"}]
[9,{"$nulls":12},{"$error":"#DIV/0!"}]
[10,{"$nulls":12},{"$error":"#DIV/0!"}]
[11,{"$nulls":12},{"$error":"#DIV/0!"}]
[12,{"$nulls":12},{"$error":"#DIV/0!"}]
[13,{"$nulls":12},{"$error":"#DIV/0!"}]
[14,{"$nulls":12},{"$error":"#DIV/0!"}]
[15,{"$nulls":12},{"$error":"#DIV/0!"}]
[16,{"$nulls":12},{"$error":"#DIV/0!"}]
[17,{"$nulls":12},{"$error":"#DIV/0!"}]
[18,{"$nulls":12},{"$error":"#DIV/0!"}]
[19,{"$nulls":12},{"$error":"#DIV/0!"}]
[20,{"$nulls":12},{"$error":"#DIV/0!"}]
[21,{"$nulls":12},{"$error":"#DIV/0!"}]
[22,{"$nulls":12},{"$error":"#DIV/0!"}]
[23,{"$nulls":12},{"$error":"#DIV/0!"}]
[24,{"$nulls":12},{"$error":"#DIV/0!"}]
[25,{"$nulls":12},{"$error":"#DIV/0!"}]
[26,{"$nulls":12},{"$error":"#DIV/0!"}]
[27,{"$nulls":12},{"$error":"#DIV/0!"}]
[28,{"$nulls":12},{"$error":"#DIV/0!"}]
[29,{"$nulls":12},{"$error":"#DIV/0!"}]
[30,{"$nulls":12},{"$error":"#DIV/0!"}]
[null,"СРЕДНИЙ ПОКАЗАТЕЛЬ ПО ГРУППЕ",{"$nulls":11},{"$f":"AVERAGE(N11:N40)","v":{"$error":"#DIV/0!"}}]
[null,"Ф.И.О, должность специалиста(ов)____________________________________________________________________________________________________________________________________________________________________________________________________________________________________"]
[null,"© Автор-составитель Кулекина И.А., СПБ, 2023"]

{"sheet":"Соц.ком. к 5г ч2","index":2,"n_rows":43,"n_cols":13,"rows_kept":43,"merged":[[0,0,0,1],[0,4,0,5],[0,6,0,8],[1,0,1,3],[1,4,1,5],[1,6,1,9],[2,0,2,3],[3,0,3,1],[3,4,3,5],[3,6,3,7],[3,8,3,10],[4,0,4,1],[4,4,4,5],[4,6,4,7],[4,8,4,10],[5,0,9,0],[5,1,9,1],[5,4,5,11],[5,12,9,12],[6,4,6,11],[7,4,8,7],[7,8,8,9],[7,10,7,11],[8,10,8,11],[40,1,40,11],[41,1,41,12],[42,1,42,12]]}
["Финальная диагностика",{"$nulls":3},"ГРУППА СРЕДНЕГО ВОЗРАСТА (4-5 лет)",null,"Период проведения - окончание посещения группы среднего возраста"]
["Стартовая диагностика",{"$nulls":3},"ГРУППА СТАРШЕГО ВОЗРАСТА (5-6 лет)",null,"Период проведения - начало уч. года (сентябрь) или начало посещения группы старшего возраста"]
["*- не диагностируется в данном возрасте"]
["Сформированность показателя",{"$nulls":3},"«2» показатель сформирован",null,"«1» показатель в стадии формирования",null,"«0» показатель не сформирован"]
["Средний уровень",{"$nulls":3},"1,8 - 2,0 норма-высокий",null,"1,0 - 1,7 норма - средний",null,"0,0 - 0,9 ниже нормы"]
["№","Ф.И. ребенка",null,null,"ОБРАЗОВАТЕЛЬНАЯ ОБЛАСТЬ «СОЦИАЛЬНО-КОММУНИКАТИВНОЕ  РАЗВИТИЕ»",{"$nulls":7},"СРЕДНИЙ ПОКАЗАТЕЛЬ ПО РЕБЕНКУ"]
[{"$nulls":4},"Показатели возможных достижений (возрастные характеристики) к 5 годам"]
[{"$nulls":4},"Область формирования основ гражданственности и патриотизма",{"$nulls":3},"Сфера трудового воспитания",null,"Область формирования основ безопасного поведения"]
[{"$nulls":10},"Ребенок имеет представления об основных правилах безопасного поведения "]
[{"$nulls":4},"Ребенок знает государственные символы РФ (флаг, герб)","Ребенок знает основные достопримечательности населенного пункта, в котором живет","Ребенок знает название улицы, на которой живет","Ребенок имеет представления о народной культуре страны, в которой живет (традиции)","Ребенок стремится к выполнению трудовых обязанностей, охотно включается в совместный труд","Ребенок имеет представления о содержании и структуре процессов хозяйственно-бытового труда взрослых","в быту, в природе, на улице, при общении с незнакомыми людьми","в чрезвычайных ситуациях"]
[1,{"$nulls":11},{"$f":"AVERAGE(E11:L11)","v":{"$error":"#DIV/0!"}}]
[2,{"$nulls":11},{"$error":"#DIV/0!"}]
[3,{"$nulls":11},{"$error":"#DIV/0!"}]
[4,{"$nulls":11},{"$error":"#DIV/0!"}]
[5,{"$nulls":11},{"$error":"#DIV/0!"}]
[6,{"$nulls":11},{"$error":"#DIV/0!"}]
[7,{"$nulls":11},{"$error":"#DIV/0!"}]
[8,{"$nulls":11},{"$error":"#DIV/0!"}]
[9,{"$nulls":11},{"$error":"#DIV/0!"}]
[10,{"$nulls":11},{"$error":"#DIV/0!"}]
[11,{"$nulls":11},{"$error":"#DIV/0!"}]
[12,{"$nulls":11},{"$error":"#DIV/0!"}]
[13,{"$nulls":11},{"$error":"#DIV/0!"}]
[14,{"$nulls":11},{"$error":"#DIV/0!"}]
[15,{"$nulls":11},{"$error":"#DIV/0!"}]
[16,{"$nulls":11},{"$error":"#DIV/0!"}]
[17,{"$nulls":11},{"$error":"#DIV/0!"}]
[18,{"$nulls":11},{"$error":"#DIV/0!"}]
[19,{"$nulls":11},{"$error":"#DIV/0!"}]
[20,{"$nulls":11},{"$error":"#DIV/0!"}]
[21,{"$nulls":11},{"$error":"#DIV/0!"}]
[22,{"$nulls":11},{"$error":"#DIV/0!"}]
[23,{"$nulls":11},{"$error":"#DIV/0!"}]
[24,{"$nulls":11},{"$error":"#DIV/0!"}]
[25,{"$nulls":11},{"$error":"#DIV/0!"}]
[26,{"$nulls":11},{"$error":"#DIV/0!"}]
[27,{"$nulls":11},{"$error":"#DIV/0!"}]
[28,{"$nulls":11},{"$error":"#DIV/0!"}]
[29,{"$nulls":11},{"$error":"#DIV/0!"}]
[30,{"$nulls":11},{"$error":"#DIV/0!"}]
[null,"СРЕДНИЙ ПОКАЗАТЕЛЬ ПО ГРУППЕ",{"$nulls":10},{"$f":"AVERAGE(M11:M40)","v":{"$error":"#DIV/0!"}}]
[null,"Ф.И.О, должность специалиста(ов)____________________________________________________________________________________________________________________________________________________________________________________________________________________________________"]
[null,"© Автор-составитель Кулекина И.А., СПБ, 2023"]

{"sheet":"Физ.разв. к 5г ч2","index":3,"n_rows":45,"n_cols":25,"rows_kept":45,"merged":[[0,0,0,1],[0,5,0,7],[0,9,0,14],[1,0,1,3],[1,5,1,7],[2,0,2,3],[3,0,3,1],[3,5,3,6],[3,7,3,9],[3,10,3,12],[4,0,4,1],[4,5,4,6],[4,7,4,9],[4,10,4,12],[5,0,11,0],[5,1,11,1],[5,4,5,23],[5,24,11,24],[6,4,6,23],[7,4,7,9],[7,10,7,13],[7,14,7,17],[7,19,11,19],[7,20,7,23],[8,4,8,5],[8,6,8,9],[8,10,9,10],[8,11,9,11],[8,12,9,12],[8,13,9,13],[8,14,11,14],[8,15,11,15],[8,16,11,16],[8,17,11,17],[8,18,11,18],[8,20,8,23],[9,4,11,4],[9,5,11,5],[9,6,11,6],[9,7,11,7],[9,8,11,8],[9,9,11,9],[9,20,11,20],[9,21,11,21],[9,22,11,22],[9,23,11,23],[10,10,11,10],[10,11,11,11],[10,12,11,12],[10,13,11,13],[42,1,42,23],[43,1,43,24],[44,1,44,24]]}
["Финальная диагностика",{"$nulls":4},"ГРУППА СРЕДНЕГО ВОЗРАСТА (4-5 лет)",{"$nulls":3},"Период проведения - окончание посещения группы среднего возраста"]
["Стартовая диагностика",{"$nulls":4},"ГРУППА СТАРШЕГО ВОЗРАСТА (5-6 лет)",{"$nulls":3},"Период проведения - начало уч. года (сентябрь) или начало посещения группы старшего возраста"]
["*- не диагностируется в данном возрасте"]
["Сформированность показателя",{"$nulls":4},"«2» показатель сформирован",null,"«1» показатель в стадии формирования",null,null,"«0» показатель не сформирован"]
["Средний уровень",{"$nulls":4},"1,8 - 2,0 норма-высокий",null,"1,0 - 1,7 норма - средний",null,null,"0,0 - 0,9 ниже нормы"]
["№","Ф.И. ребенка",null,null,"ОБРАЗОВАТЕЛЬНАЯ ОБЛАСТЬ «ФИЗИЧЕСКОЕ  РАЗВИТИЕ»",{"$nulls":19},"СРЕДНИЙ ПОКАЗАТЕЛЬ ПО РЕБЕНКУ"]
[{"$nulls":4},"Показатели возможных достижений (возрастные характеристики) к 5 годам"]
[{"$nulls":4},"Мелкая моторика",{"$nulls":5},"КГН",{"$nulls":3},"ЗОЖ",{"$nulls":3},"Подвижные игры","Спортивные игры*","Спортивные упражнения"]
[{"$nulls":4},"Координация рук и глаз",null,"Графические навыки",{"$nulls":3},"Навыки соблюдения чистоты тела (правила личной гигиены)","Навыки культуры еды (прием пищи) ","Навыки поддержания порядка (правила поведения в быту) ","Навыки ухода за собой (одевание, раздевание) ","Ребенок имеет представления о факторах, положительно/негативно влияющих на здоровье (полезные/вредные привычки)","Ребенок имеет представления о важности правильного питания (витаминах)","Ребенок имеет представления о важности закаливания","Ребенок может охарактеризовать свое самочувствие, привлечь внимание взрослого в случае недомогания","Ребенок проявляет желание выполнять роль водящего",null,"Ребенок умеет кататься"]
[{"$nulls":4},"Ребенок умеет застегивать пуговицы","Ребенок умеет пользоваться пинцетом при перекладывании мелких предметов","Ребенок ровно обводит изображение по контуру (по точкам)","Ребенок закрашивает изображение, не выходя за контру","Ребенок выполняет штриховку на крупном изображении","Ребенок дорисовывает вторую половину в простых изображениях (домик, цветок и др.)",{"$nulls":10},"на санках","на лыжах","на двухколесном велосипеде","на самокате"]
[{"$nulls":10},"Ребенок выполняет самостоятельно","Ребенок выполняет самостоятельно","Ребенок выполняет самостоятельно","Ребенок выполняет самостоятельно"]
[]
[1,{"$nulls":18},"*",{"$nulls":4},{"$f":"AVERAGE(E13:X13)","v":{"$error":"#DIV/0!"}}]
[2,{"$nulls":18},"*",{"$nulls":4},{"$error":"#DIV/0!"}]
[3,{"$nulls":18},"*",{"$nulls":4},{"$error":"#DIV/0!"}]
[4,{"$nulls":18},"*",{"$nulls":4},{"$error":"#DIV/0!"}]
[5,{"$nulls":18},"*",{"$nulls":4},{"$error":"#DIV/0!"}]
[6,{"$nulls":18},"*",{"$nulls":4},{"$error":"#DIV/0!"}]
[7,{"$nulls":18},"*",{"$nulls":4},{"$error":"#DIV/0!"}]
[8,{"$nulls":18},"*",{"$nulls":4},{"$error":"#DIV/0!"}]
[9,{"$nulls":18},"*",{"$nulls":4},{"$error":"#DIV/0!"}]
[10,{"$nulls":18},"*",{"$nulls":4},{"$error":"#DIV/0!"}]
[11,{"$nulls":18},"*",{"$nulls":4},{"$error":"#DIV/0!"}]
[12,{"$nulls":18},"*",{"$nulls":4},{"$error":"#DIV/0!"}]
[13,{"$nulls":18},"*",{"$nulls":4},{"$error":"#DIV/0!"}]
[14,{"$nulls":18},"*",{"$nulls":4},{"$error":"#DIV/0!"}]
[15,{"$nulls":18},"*",{"$nulls":4},{"$error":"#DIV/0!"}]
[16,{"$nulls":18},"*",{"$nulls":4},{"$error":"#DIV/0!"}]
[17,{"$nulls":18},"*",{"$nulls":4},{"$error":"#DIV/0!"}]
[18,{"$nulls":18},"*",{"$nulls":4},{"$error":"#DIV/0!"}]
[19,{"$nulls":18},"*",{"$nulls":4},{"$error":"#DIV/0!"}]
[20,{"$nulls":18},"*",{"$nulls":4},{"$error":"#DIV/0!"}]
[21,{"$nulls":18},"*",{"$nulls":4},{"$error":"#DIV/0!"}]
[22,{"$nulls":18},"*",{"$nulls":4},{"$error":"#DIV/0!"}]
[23,{"$nulls":18},"*",{"$nulls":4},{"$error":"#DIV/0!"}]
[24,{"$nulls":18},"*",{"$nulls":4},{"$error":"#DIV/0!"}]
[25,{"$nulls":18},"*",{"$nulls":4},{"$error":"#DIV/0!"}]
[26,{"$nulls":18},"*",{"$nulls":4},{"$error":"#DIV/0!"}]
[27,{"$nulls":18},"*",{"$nulls":4},{"$error":"#DIV/0!"}]
[28,{"$nulls":18},"*",{"$nulls":4},{"$error":"#DIV/0!"}]
[29,{"$nulls":18},"*",{"$nulls":4},{"$error":"#DIV/0!"}]
[30,{"$nulls":18},"*",{"$nulls":4},{"$error":"#DIV/0!"}]
[null,"СРЕДНИЙ ПОКАЗАТЕЛЬ ПО ГРУППЕ",{"$nulls":22},{"$f":"AVERAGE(Y13:Y42)","v":{"$error":"#DIV/0!"}}]
[null,"Ф.И.О, должность специалиста(ов)____________________________________________________________________________________________________________________________________________________________________________________________________________________________________"]
[null,"© Автор-составитель Кулекина И.А., СПБ, 2023"]

{"sheet":"Физ.разв. к 5г ч1","index":4,"n_rows":44,"n_cols":27,"rows_kept":44,"merged":[[0,0,0,1],[0,4,0,7],[0,8,0,13],[1,0,1,3],[1,4,1,7],[1,8,1,14],[2,0,2,3],[3,0,3,1],[3,4,3,6],[3,7,3,8],[3,10,3,12],[4,0,4,1],[4,4,4,6],[4,7,4,8],[4,10,4,12],[5,0,10,0],[5,1,10,1],[5,4,5,25],[5,26,10,26],[6,4,6,25],[7,4,7,25],[8,5,8,7],[8,8,8,11],[8,12,8,14],[8,15,8,20],[8,21,8,22],[8,23,8,25],[9,4,10,4],[9,5,10,5],[9,6,10,6],[9,7,10,7],[9,8,9,11],[9,12,9,14],[9,15,9,20],[9,21,10,21],[9,22,10,22],[9,23,9,25],[41,1,41,25],[42,1,42,26],[43,1,43,26]]}
["Финальная диагностика",{"$nulls":3},"ГРУППА СРЕДНЕГО ВОЗРАСТА (4-5 лет)",{"$nulls":3},"Период проведения - окончание посещения группы среднего возраста"]
["Стартовая диагностика",{"$nulls":3},"ГРУППА СТАРШЕГО ВОЗРАСТА (5-6 лет)",{"$nulls":3},"Период проведения - начало уч. года (сентябрь) или начало посещения группы старшего возраста"]
["*- не диагностируется в данном возрасте"]
["Сформированность показателя",{"$nulls":3},"«2» показатель сформирован",null,null,"«1» показатель в стадии формирования",null,null,"«0» показатель не сформирован"]
["Средний уровень",{"$nulls":3},"1,8 - 2,0 норма-высокий",null,null,"1,0 - 1,7 норма - средний",null,null,"0,0 - 0,9 ниже нормы"]
["№","Ф.И. ребенка",null,null,"ОБРАЗОВАТЕЛЬНАЯ ОБЛАСТЬ «ФИЗИЧЕСКОЕ РАЗВИТИЕ»",{"$nulls":21},"СРЕДНИЙ ПОКАЗАТЕЛЬ ПО РЕБЕНКУ"]
[{"$nulls":4},"Показатели возможных достижений (возрастные характеристики) к 5 годам"]
[{"$nulls":4},"Крупная моторика. ОВД, ОРУ"]
[{"$nulls":4},"Бросание, катание, ловля, метание","Ползанье, лазанье",null,null,"Ходьба",{"$nulls":3},"Бег",null,null,"Прыжки",{"$nulls":5},"Равновесие",null,"Строевые упражнения"]
[{"$nulls":4},"Ребенок выполняет различные упражнения с мячом: прокатывание, подбрасывание, бросание, ловля, скатывание, отбивание","Ребенок ползает на четвереньках «змейкой», по наклонной доске, по гимнастической скамейке на животе, подтягиваясь руками","Ребенок проползает в обручи, под дуги, под веревку","Ребенок влезает на гимнастическую стенку и спускается с нее, не пропуская реек; переходит по гимнастической стенке с пролета на пролет","Ребенок выполняет различные виды ходьбы",{"$nulls":3},"Ребенок выполняет различные виды бега",null,null,"Ребенок выполняет различные виды прыжков",{"$nulls":5},"Ребенок может стоять на одной ноге","Ребенок выполняет кружение вокруг себя","Ребенок выполняет различные виды строевых упражнений"]
[{"$nulls":8},"в колонне по одному,  со сменой ведущего, в чередовании с бегом, с разным положением рук"," с изменением темпа, с остановкой по сигналу ","на носках, на пятках, на внешней стороне стопы"," приставным шагом, перешагивая через предметы, чередуя мелкий и широкий шаг","в колонне по одному, по кругу, со сменой направляющего","на носках, высоко поднимая колени","обегая предметы, на месте, врассыпную, в парах","на двух ногах на месте, ноги вместе – ноги врозь","с поворотом вправо-влево, вокруг себя"," в длину с места","прямой галоп","спрыгивание","подпрыгивание с продвижением вперед",null,null,"построение в колонну по одному, по два, по росту, перестроение из колонны","размыкание и смыкание на вытянутые руки","равнение по ориентирам и без них"]
[1,{"$nulls":25},{"$f":"AVERAGE(G12:Z12)","v":{"$error":"#DIV/0!"}}]
[2,{"$nulls":25},{"$error":"#DIV/0!"}]
[3,{"$nulls":25},{"$error":"#DIV/0!"}]
[4,{"$nulls":25},{"$error":"#DIV/0!"}]
[5,{"$nulls":25},{"$error":"#DIV/0!"}]
[6,{"$nulls":25},{"$error":"#DIV/0!"}]
[7,{"$nulls":25},{"$error":"#DIV/0!"}]
[8,{"$nulls":25},{"$error":"#DIV/0!"}]
[9,{"$nulls":25},{"$error":"#DIV/0!"}]
[10,{"$nulls":25},{"$error":"#DIV/0!"}]
[11,{"$nulls":25},{"$error":"#DIV/0!"}]
[12,{"$nulls":25},{"$error":"#DIV/0!"}]
[13,{"$nulls":25},{"$error":"#DIV/0!"}]
[14,{"$nulls":25},{"$error":"#DIV/0!"}]
[15,{"$nulls":25},{"$error":"#DIV/0!"}]
[16,{"$nulls":25},{"$error":"#DIV/0!"}]
[17,{"$nulls":25},{"$error":"#DIV/0!"}]
[18,{"$nulls":25},{"$error":"#DIV/0!"}]
[19,{"$nulls":25},{"$error":"#DIV/0!"}]
[20,{"$nulls":25},{"$error":"#DIV/0!"}]
[21,{"$nulls":25},{"$error":"#DIV/0!"}]
[22,{"$nulls":25},{"$error":"#DIV/0!"}]
[23,{"$nulls":25},{"$error":"#DIV/0!"}]
[24,{"$nulls":25},{"$error":"#DIV/0!"}]
[25,{"$nulls":25},{"$error":"#DIV/0!"}]
[26,{"$nulls":25},{"$error":"#DIV/0!"}]
[27,{"$nulls":25},{"$error":"#DIV/0!"}]
[28,{"$nulls":25},{"$error":"#DIV/0!"}]
[29,{"$nulls":25},{"$error":"#DIV/0!"}]
[30,{"$nulls":25},{"$error":"#DIV/0!"}]
[null,"СРЕДНИЙ ПОКАЗАТЕЛЬ ПО ГРУППЕ",{"$nulls":24},{"$f":"AVERAGE(AA12:AA41)","v":{"$error":"#DIV/0!"}}]
[null,"Ф.И.О, должность специалиста(ов)____________________________________________________________________________________________________________________________________________________________________________________________________________________________________"]
[null,"© Автор-составитель Кулекина И.А., СПБ, 2023"]

{"sheet":"Соц.ком.к 5г ч1","index":5,"n_rows":43,"n_cols":16,"rows_kept":43,"merged":[[0,0,0,1],[0,4,0,6],[0,8,0,14],[1,0,1,3],[1,4,1,6],[1,8,1,13],[2,0,2,3],[3,0,3,1],[3,4,3,5],[3,6,3,7],[3,8,3,10],[4,0,4,1],[4,4,4,5],[4,6,4,7],[4,8,4,10],[5,0,9,0],[5,1,9,1],[5,4,5,14],[5,15,9,15],[6,4,6,14],[7,4,7,14],[8,8,8,9],[8,11,8,14],[40,1,40,14],[41,1,41,15],[42,1,42,15]]}
["Финальная диагностика",{"$nulls":3},"ГРУППА СРЕДНЕГО ВОЗРАСТА (4-5 лет)",{"$nulls":3},"Период проведения - окончание посещения группы среднего возраста"]
["Стартовая диагностика",{"$nulls":3},"ГРУППА СТАРШЕГО ВОЗРАСТА (5-6 лет)",{"$nulls":3},"Период проведения - начало уч. года (сентябрь) или начало посещения группы старшего возраста"]
["*- не диагностируется в данном возрасте"]
["Сформированность показателя",{"$nulls":3},"«2» показатель сформирован",null,"«1» показатель в стадии формирования",null,"«0» показатель не сформирован"]
["Средний уровень",{"$nulls":3},"1,8 - 2,0 норма-высокий",null,"1,0 - 1,7 норма - средний",null,"0,0 - 0,9 ниже нормы"]
["№","Ф.И. ребенка",null,null,"ОБРАЗОВАТЕЛЬНАЯ ОБЛАСТЬ «СОЦИАЛЬНО-КОММУНИКАТИВНОЕ  РАЗВИТИЕ»",{"$nulls":10},"СРЕДНИЙ ПОКАЗАТЕЛЬ ПО РЕБЕНКУ"]
[{"$nulls":4},"Показатели возможных достижений (возрастные характеристики) к 5 годам"]
[{"$nulls":4},"Сфера социальных отношений"]
[{"$nulls":4},"Отношение к самому себе","Отношение к сверстникам","Отношение к взрослым","Эмоции","Поведение",null,"Семья","Игровое поведение"]
[{"$nulls":4},"Ребенок имеет представления о разнообразных возрастных изменениях относительно себя (когда я был маленький, когда я буду взрослым)","Ребенок демонстрирует стремление к общению, может оговариваться, стремится к самовыражению в деятельности, к признанию и уважению сверстников","Ребенок выполняет самостоятельно правила общения со взрослым, внимателен к его словам и мнению, стремится к интеллектуальному общению (задает много вопросов)","Ребенок проявляет сочувствие и содействие в ответ на эмоциональное состояние других, испытывает внимательность к переживаниям других","Ребенок без напоминания взрослого здоровается и прощается, говорит спасибо и пожалуйста","Ребенок знает/ выполняет правила поведения в общественных местах","Ребенок уважительно относится к членам своей семьи","Ребенок называет роль до начала игры, обозначает новую роль по ходу игры, предлагает игровой замысел, проявляет инициативу в развитии сюжета, активно включается в ролевой диалог","Ребенок активно использует предметы-заместители","Ребенок проявляет творчество в создании игровой обстановки","Ребенок принимает игровую задачу в играх с правилами, проявляет интерес к результату, выигрышу"]
[1,{"$nulls":14},{"$f":"AVERAGE(F11:O11)","v":{"$error":"#DIV/0!"}}]
[2,{"$nulls":14},{"$error":"#DIV/0!"}]
[3,{"$nulls":14},{"$error":"#DIV/0!"}]
[4,{"$nulls":14},{"$error":"#DIV/0!"}]
[5,{"$nulls":14},{"$error":"#DIV/0!"}]
[6,{"$nulls":14},{"$error":"#DIV/0!"}]
[7,{"$nulls":14},{"$error":"#DIV/0!"}]
[8,{"$nulls":14},{"$error":"#DIV/0!"}]
[9,{"$nulls":14},{"$error":"#DIV/0!"}]
[10,{"$nulls":14},{"$error":"#DIV/0!"}]
[11,{"$nulls":14},{"$error":"#DIV/0!"}]
[12,{"$nulls":14},{"$error":"#DIV/0!"}]
[13,{"$nulls":14},{"$error":"#DIV/0!"}]
[14,{"$nulls":14},{"$error":"#DIV/0!"}]
[15,{"$nulls":14},{"$error":"#DIV/0!"}]
[16,{"$nulls":14},{"$error":"#DIV/0!"}]
[17,{"$nulls":14},{"$error":"#DIV/0!"}]
[18,{"$nulls":14},{"$error":"#DIV/0!"}]
[19,{"$nulls":14},{"$error":"#DIV/0!"}]
[20,{"$nulls":14},{"$error":"#DIV/0!"}]
[21,{"$nulls":14},{"$error":"#DIV/0!"}]
[22,{"$nulls":14},{"$error":"#DIV/0!"}]
[23,{"$nulls":14},{"$error":"#DIV/0!"}]
[24,{"$nulls":14},{"$error":"#DIV/0!"}]
[25,{"$nulls":14},{"$error":"#DIV/0!"}]
[26,{"$nulls":14},{"$error":"#DIV/0!"}]
[27,{"$nulls":14},{"$error":"#DIV/0!"}]
[28,{"$nulls":14},{"$error":"#DIV/0!"}]
[29,{"$nulls":14},{"$error":"#DIV/0!"}]
[30,{"$nulls":14},{"$error":"#DIV/0!"}]
[null,"СРЕДНИЙ ПОКАЗАТЕЛЬ ПО ГРУППЕ",{"$nulls":13},{"$f":"AVERAGE(P11:P40)","v":{"$error":"#DIV/0!"}}]
[null,"Ф.И.О, должность специалиста(ов)____________________________________________________________________________________________________________________________________________________________________________________________________________________________________"]
[null,"© Автор-составитель Кулекина И.А., СПБ, 2023"]

{"sheet":"Позн.разв. к 5г ч1","index":6,"n_rows":44,"n_cols":18,"rows_kept":44,"merged":[[0,1,0,2],[0,5,0,7],[0,8,0,11],[1,1,1,4],[1,5,1,7],[1,8,1,13],[2,1,2,4],[3,1,3,2],[3,5,3,6],[3,7,3,10],[3,11,3,13],[4,1,4,2],[4,5,4,6],[4,7,4,10],[4,11,4,13],[5,0,10,0],[5,1,10,1],[5,4,5,16],[5,17,10,17],[6,4,6,16],[7,4,7,6],[7,7,8,9],[7,10,7,16],[8,11,8,12],[8,13,8,14],[9,4,9,6],[9,7,10,7],[9,8,10,8],[9,9,10,9],[9,10,10,10],[9,11,10,11],[9,12,10,12],[9,13,10,13],[9,14,10,14],[9,15,10,15],[9,16,10,16],[41,1,41,16],[43,1,43,17]]}
[null,"Финальная диагностика",{"$nulls":3},"ГРУППА СРЕДНЕГО ВОЗРАСТА (4-5 лет)",null,null,"Период проведения - окончание посещения группы среднего возраста"]
[null,"Стартовая диагностика",{"$nulls":3},"ГРУППА СТАРШЕГО ВОЗРАСТА (5-6 лет)",null,null,"Период проведения - начало уч. года (сентябрь) или начало посещения группы старшего возраста"]
[null,"*- не диагностируется в данном возрасте"]
[null,"Сформированность показателя",{"$nulls":3},"«2» показатель сформирован",null,"«1» показатель в стадии формирования",{"$nulls":3},"«0» показатель не сформирован"]
[null,"Средний уровень",{"$nulls":3},"1,8 - 2,0 норма-высокий",null,"1,0 - 1,7 норма - средний",{"$nulls":3},"0,0 - 0,9 ниже нормы"]
["№","Ф.И. ребенка",null,null,"ОБРАЗОВАТЕЛЬНАЯ ОБЛАСТЬ «ПОЗНАВАТЕЛЬНОЕ  РАЗВИТИЕ»",{"$nulls":12},"СРЕДНИЙ ПОКАЗАТЕЛЬ ПО РЕБЕНКУ"]
[{"$nulls":4},"Показатели возможных достижений (возрастные характеристики) к 5 годам"]
[{"$nulls":4},"Сенсорные эталоны ",null,null,"Познавательные действия",null,null,"Математические представления"]
[{"$nulls":4},"Цвет, оттенки","Форма, геометрические фигуры","Величина",{"$nulls":3},"Количество и счет","Ориентировка во времени",null,"Ориентировка в пространстве",null,"Пространственно-количественные связи и отношения","Сравнение"]
[{"$nulls":4},"Ребенок различает и называет",null,null,"Ребенок имеет представления о материалах, из которых изготовлены предметы (метал, стекло, бумага и др.), об их свойствах","Ребенок умеет находить отличия и сходства между предметами по 2-3 признакам путем непосредственного сравнения","Ребенок умеет описывать предметы по 3-4 основным свойствам","Ребенок знает цифры 1-5, умеет считать в пределах 5 (на слух, на ощупь), пересчитывать предметы и отсчитывать их по образцу и названному числу","Ребенок различает части суток, знает их последовательность","Ребенок понимает временную последовательность вчера -сегодня-завтра","Ребенок понимает: вперед-назад, вниз – вверх, налево-направо","Ребенок ориентируется в окружающем пространстве","Ребенок ориентируется по схеме собственного тела (левая-правая рука/нога, левое-правое ухо и т.д.)","Ребенок умеет сравнивать предметы по форме и по величине"]
[{"$nulls":4},"Ребенок знает 7-8 цветов и оттенки","Ребенок знает 7-8 геометрических фигур","Ребенок знает: большой-поменьше – самый маленький-одинакового размера, короткий-длинный, высокий-низкий, широкий – узкий, толстый - тонкий"]
[1,{"$nulls":16},{"$f":"AVERAGE(E12:Q12)","v":{"$error":"#DIV/0!"}}]
[2,{"$nulls":16},{"$error":"#DIV/0!"}]
[3,{"$nulls":16},{"$error":"#DIV/0!"}]
[4,{"$nulls":16},{"$error":"#DIV/0!"}]
[5,{"$nulls":16},{"$error":"#DIV/0!"}]
[6,{"$nulls":16},{"$error":"#DIV/0!"}]
[7,{"$nulls":16},{"$error":"#DIV/0!"}]
[8,{"$nulls":16},{"$error":"#DIV/0!"}]
[9,{"$nulls":16},{"$error":"#DIV/0!"}]
[10,{"$nulls":16},{"$error":"#DIV/0!"}]
[11,{"$nulls":16},{"$error":"#DIV/0!"}]
[12,{"$nulls":16},{"$error":"#DIV/0!"}]
[13,{"$nulls":16},{"$error":"#DIV/0!"}]
[14,{"$nulls":16},{"$error":"#DIV/0!"}]
[15,{"$nulls":16},{"$error":"#DIV/0!"}]
[16,{"$nulls":16},{"$error":"#DIV/0!"}]
[17,{"$nulls":16},{"$error":"#DIV/0!"}]
[18,{"$nulls":16},{"$error":"#DIV/0!"}]
[19,{"$nulls":16},{"$error":"#DIV/0!"}]
[20,{"$nulls":16},{"$error":"#DIV/0!"}]
[21,{"$nulls":16},{"$error":"#DIV/0!"}]
[22,{"$nulls":16},{"$error":"#DIV/0!"}]
[23,{"$nulls":16},{"$error":"#DIV/0!"}]
[24,{"$nulls":16},{"$error":"#DIV/0!"}]
[25,{"$nulls":16},{"$error":"#DIV/0!"}]
[26,{"$nulls":16},{"$error":"#DIV/0!"}]
[27,{"$nulls":16},{"$error":"#DIV/0!"}]
[28,{"$nulls":16},{"$error":"#DIV/0!"}]
[29,{"$nulls":16},{"$error":"#DIV/0!"}]
[30,{"$nulls":16},{"$error":"#DIV/0!"}]
[null,"СРЕДНИЙ ПОКАЗАТЕЛЬ ПО ГРУППЕ",{"$nulls":15},{"$f":"AVERAGE(R12:R41)","v":{"$error":"#DIV/0!"}}]
[null,"Ф.И.О, должность специалиста(ов)____________________________________________________________________________________________________________________________________________________________________________________________________________________________________"]
[null,"© Автор-составитель Кулекина И.А., СПБ, 2023"]

{"sheet":"Позн.разв. к 5г ч2","index":7,"n_rows":44,"n_cols":14,"rows_kept":44,"merged":[[0,0,0,1],[0,4,0,5],[0,7,0,10],[1,0,1,3],[1,4,1,5],[1,7,1,10],[2,0,2,3],[3,0,3,1],[3,4,3,5],[3,6,3,8],[3,9,3,10],[4,0,4,1],[4,4,4,5],[4,6,4,8],[4,9,4,10],[5,0,10,0],[5,1,10,1],[5,4,5,12],[5,13,10,13],[6,4,6,12],[7,4,7,7],[7,8,7,12],[8,8,8,9],[8,10,8,12],[9,4,9,5],[9,6,10,6],[9,7,10,7],[9,8,10,8],[9,9,10,9],[9,10,10,10],[9,11,10,11],[9,12,10,12],[41,1,41,12],[43,1,43,13]]}
["Финальная диагностика",{"$nulls":3},"ГРУППА СРЕДНЕГО ВОЗРАСТА (4-5 лет)",null,null,"Период проведения - окончание посещения группы среднего возраста"]
["Стартовая диагностика",{"$nulls":3},"ГРУППА СТАРШЕГО ВОЗРАСТА (5-6 лет)",null,null,"Период проведения - начало уч. года (сентябрь) или начало посещения группы старшего возраста"]
["*- не диагностируется в данном возрасте"]
["Сформированность показателя",{"$nulls":3},"«2» показатель сформирован",null,"«1» показатель в стадии формирования",null,null,"«0» показатель не сформирован"]
["Средний уровень",{"$nulls":3},"1,8 - 2,0 норма-высокий",null,"1,0 - 1,7 норма - средний",null,null,"0,0 - 0,9 ниже нормы"]
["№","Ф.И. ребенка",null,null,"ОБРАЗОВАТЕЛЬНАЯ ОБЛАСТЬ «ПОЗНАВАТЕЛЬНОЕ  РАЗВИТИЕ»",{"$nulls":8},"СРЕДНИЙ ПОКАЗАТЕЛЬ ПО РЕБЕНКУ"]
[{"$nulls":4},"Показатели возможных достижений (возрастные характеристики) к 5 годам"]
[{"$nulls":4},"Окружающий мир",{"$nulls":3},"Природа "]
[{"$nulls":4},"Труд взрослых, профессии","Предметный мир","Я- сам, человек","Семья","Объекты живой природы",null,"Объекты неживой природы, природные явления"]
[{"$nulls":4},"Ребенок имеет представления, может показать на картинке и в естественной среде, может рассказать",null,"Ребенок знает адрес своего места жительства","Ребенок разбирается в элементарных родственных связях","Ребенок может сравнивать группировки объектов живой природы на основе признаков (дикие – домашние, хищные – травоядные, перелетные – зимующие и др.)","Ребенок имеет представления об элементарных потребностях растений и животных (питание, вода, тепло, свет)","Ребенок имеет представления о свойствах неживой природы (камни, глина, песок, почва, вода)","Ребенок имеет представления о явлениях природы в разные сезоны года","Ребенок имеет представление о свойствах и качествах природных материалов "]
[{"$nulls":4}," о труде взрослых в городе "," о труде взрослых  в сельской местности"]
[1,{"$nulls":12},{"$f":"AVERAGE(E12:M12)","v":{"$error":"#DIV/0!"}}]
[2,{"$nulls":12},{"$error":"#DIV/0!"}]
[3,{"$nulls":12},{"$error":"#DIV/0!"}]
[4,{"$nulls":12},{"$error":"#DIV/0!"}]
[5,{"$nulls":12},{"$error":"#DIV/0!"}]
[6,{"$nulls":12},{"$error":"#DIV/0!"}]
[7,{"$nulls":12},{"$error":"#DIV/0!"}]
[8,{"$nulls":12},{"$error":"#DIV/0!"}]
[9,{"$nulls":12},{"$error":"#DIV/0!"}]
[10,{"$nulls":12},{"$error":"#DIV/0!"}]
[11,{"$nulls":12},{"$error":"#DIV/0!"}]
[12,{"$nulls":12},{"$error":"#DIV/0!"}]
[13,{"$nulls":12},{"$error":"#DIV/0!"}]
[14,{"$nulls":12},{"$error":"#DIV/0!"}]
[15,{"$nulls":12},{"$error":"#DIV/0!"}]
[16,{"$nulls":12},{"$error":"#DIV/0!"}]
[17,{"$nulls":12},{"$error":"#DIV/0!"}]
[18,{"$nulls":12},{"$error":"#DIV/0!"}]
[19,{"$nulls":12},{"$error":"#DIV/0!"}]
[20,{"$nulls":12},{"$error":"#DIV/0!"}]
[21,{"$nulls":12},{"$error":"#DIV/0!"}]
[22,{"$nulls":12},{"$error":"#DIV/0!"}]
[23,{"$nulls":12},{"$error":"#DIV/0!"}]
[24,{"$nulls":12},{"$error":"#DIV/0!"}]
[25,{"$nulls":12},{"$error":"#DIV/0!"}]
[26,{"$nulls":12},{"$error":"#DIV/0!"}]
[27,{"$nulls":12},{"$error":"#DIV/0!"}]
[28,{"$nulls":12},{"$error":"#DIV/0!"}]
[29,{"$nulls":12},{"$error":"#DIV/0!"}]
[30,{"$nulls":12},{"$error":"#DIV/0!"}]
[null,"СРЕДНИЙ ПОКАЗАТЕЛЬ ПО ГРУППЕ",{"$nulls":11},{"$f":"AVERAGE(N12:N41)","v":{"$error":"#DIV/0!"}}]
[null,"Ф.И.О, должность специалиста(ов)____________________________________________________________________________________________________________________________________________________________________________________________________________________________________"]
[null,"© Автор-составитель Кулекина И.А., СПБ, 2023"]

{"sheet":"Худ.эст.к 5г ч1","index":8,"n_rows":44,"n_cols":14,"rows_kept":44,"merged":[[0,0,0,1],[0,4,0,5],[0,6,0,9],[1,0,1,3],[1,4,1,5],[1,6,1,9],[2,0,2,3],[3,0,3,1],[3,4,3,5],[3,7,3,8],[4,0,4,1],[4,4,4,5],[4,7,4,8],[5,0,10,0],[5,1,10,1],[5,4,5,12],[5,13,10,13],[6,4,6,12],[7,4,7,12],[8,4,8,5],[8,10,8,11],[9,4,10,4],[9,5,10,5],[9,6,10,6],[9,7,10,7],[9,8,10,8],[9,9,10,9],[9,10,10,10],[9,11,10,11],[9,12,10,12],[41,1,41,12],[43,1,43,13]]}
["Финальная диагностика",{"$nulls":3},"ГРУППА СРЕДНЕГО ВОЗРАСТА (4-5 лет)",null,"Период проведения - окончание посещения группы среднего возраста"]
["Стартовая диагностика",{"$nulls":3},"ГРУППА СТАРШЕГО ВОЗРАСТА (5-6 лет)",null,"Период проведения - начало уч. года (сентябрь) или начало посещения группы старшего возраста"]
["*- не диагностируется в данном возрасте"]
["Сформированность показателя",{"$nulls":3},"«2» показатель сформирован",null,"«1» показатель в стадии формирования","«0» показатель не сформирован"]
["Средний уровень",{"$nulls":3},"1,8 - 2,0 норма-высокий",null,"1,0 - 1,7 норма - средний","0,0 - 0,9 ниже нормы"]
["№","Ф.И. ребенка",null,null,"ОБРАЗОВАТЕЛЬНАЯ ОБЛАСТЬ «ХУДОЖЕСТВЕННО-ЭСТЕТИЧЕСКОЕ РАЗВИТИЕ»",{"$nulls":8},"СРЕДНИЙ ПОКАЗАТЕЛЬ ПО РЕБЕНКУ"]
[{"$nulls":4},"Показатели возможных достижений (возрастные характеристики) к 5 годам"]
[{"$nulls":4},"Музыкальная деятельность"]
[{"$nulls":4},"Слушание",null,"Пение ","Музыкально-ритмические движения","Песенное творчество","Игра на детских музыкальных инструментах","Театрализованная деятельность",null,"Танцевально-игровое творчество"]
[{"$nulls":4},"Ребенок дослушивает музыкальное произведение до конца","Ребенок различает звуки по высоте (высокий-низкий, в пределах сексты, септимы)","Ребенок поет протяжно, подвижно, согласованно, смягчает концы фраз с инструментальным изображением и без него","Ребенок ритмичного двигается в соответствие с характером музыки","Ребенок умеет импровизировать мелодию на заданный текст","Ребенок умеет подыгрывать простейшие мелодии на деревянных ложках, погремушках, барабане, металлофоне","Ребенок способен передавать художественный образ, следить за развитием взаимодействия персонажей","Ребенок использует в театрализованных играх образные игрушки и различные виды театра","Ребенок охотно участвует в инсценировках"]
[]
[1,{"$nulls":12},{"$f":"AVERAGE(F12:M12)","v":{"$error":"#DIV/0!"}}]
[2,{"$nulls":12},{"$error":"#DIV/0!"}]
[3,{"$nulls":12},{"$error":"#DIV/0!"}]
[4,{"$nulls":12},{"$error":"#DIV/0!"}]
[5,{"$nulls":12},{"$error":"#DIV/0!"}]
[6,{"$nulls":12},{"$error":"#DIV/0!"}]
[7,{"$nulls":12},{"$error":"#DIV/0!"}]
[8,{"$nulls":12},{"$error":"#DIV/0!"}]
[9,{"$nulls":12},{"$error":"#DIV/0!"}]
[10,{"$nulls":12},{"$error":"#DIV/0!"}]
[11,{"$nulls":12},{"$error":"#DIV/0!"}]
[12,{"$nulls":12},{"$error":"#DIV/0!"}]
[13,{"$nulls":12},{"$error":"#DIV/0!"}]
[14,{"$nulls":12},{"$error":"#DIV/0!"}]
[15,{"$nulls":12},{"$error":"#DIV/0!"}]
[16,{"$nulls":12},{"$error":"#DIV/0!"}]
[17,{"$nulls":12},{"$error":"#DIV/0!"}]
[18,{"$nulls":12},{"$error":"#DIV/0!"}]
[19,{"$nulls":12},{"$error":"#DIV/0!"}]
[20,{"$nulls":12},{"$error":"#DIV/0!"}]
[21,{"$nulls":12},{"$error":"#DIV/0!"}]
[22,{"$nulls":12},{"$error":"#DIV/0!"}]
[23,{"$nulls":12},{"$error":"#DIV/0!"}]
[24,{"$nulls":12},{"$error":"#DIV/0!"}]
[25,{"$nulls":12},{"$error":"#DIV/0!"}]
[26,{"$nulls":12},{"$error":"#DIV/0!"}]
[27,{"$nulls":12},{"$error":"#DIV/0!"}]
[28,{"$nulls":12},{"$error":"#DIV/0!"}]
[29,{"$nulls":12},{"$error":"#DIV/0!"}]
[30,{"$nulls":12},{"$error":"#DIV/0!"}]
[null,"СРЕДНИЙ ПОКАЗАТЕЛЬ ПО ГРУППЕ",{"$nulls":11},{"$f":"AVERAGE(N12:N41)","v":{"$error":"#DIV/0!"}}]
[null,"Ф.И.О, должность специалиста(ов)____________________________________________________________________________________________________________________________________________________________________________________________________________________________________"]
[null,"© Автор-составитель Кулекина И.А., СПБ, 2023"]

{"sheet":"Худ.эст.к 5г ч2","index":9,"n_rows":44,"n_cols":22,"rows_kept":44,"merged":[[0,0,0,1],[0,4,0,6],[0,9,0,13],[1,0,1,3],[1,4,1,6],[1,9,1,14],[2,0,2,3],[3,0,3,1],[3,4,3,5],[3,6,3,7],[3,10,3,13],[4,0,4,1],[4,4,4,5],[4,6,4,7],[4,10,4,13],[5,0,10,0],[5,1,10,1],[5,4,5,20],[5,21,10,21],[6,4,6,20],[7,4,7,13],[7,14,7,18],[7,19,8,20],[8,4,8,5],[8,6,8,7],[8,8,8,10],[8,11,8,12],[8,13,10,13],[8,14,8,18],[9,4,10,4],[9,5,10,5],[9,6,10,6],[9,7,10,7],[9,8,10,8],[9,9,10,9],[9,10,10,10],[9,11,10,11],[9,12,10,12],[9,14,10,14],[9,15,10,15],[9,16,10,16],[9,17,10,17],[9,18,10,18],[9,19,10,19],[9,20,10,20],[41,1,41,20],[43,1,43,21]]}
["Финальная диагностика",{"$nulls":3},"ГРУППА СРЕДНЕГО ВОЗРАСТА (4-5 лет)",{"$nulls":4},"Период проведения - окончание посещения группы среднего возраста"]
["Стартовая диагностика",{"$nulls":3},"ГРУППА СТАРШЕГО ВОЗРАСТА (5-6 лет)",{"$nulls":4},"Период проведения - начало уч. года (сентябрь) или начало посещения группы старшего возраста"]
["*- не диагностируется в данном возрасте"]
["Сформированность показателя",{"$nulls":3},"«2» показатель сформирован",null,"«1» показатель в стадии формирования",{"$nulls":3},"«0» показатель не сформирован"]
["Средний уровень",{"$nulls":3},"1,8 - 2,0 норма-высокий",null,"1,0 - 1,7 норма - средний",{"$nulls":3},"0,0 - 0,9 ниже нормы"]
[null,"Ф.И. ребенка",null,null,"ОБРАЗОВАТЕЛЬНАЯ ОБЛАСТЬ «ХУДОЖЕСТВЕННО-ЭСТЕТИЧЕСКОЕ РАЗВИТИЕ»",{"$nulls":16},"СРЕДНИЙ ПОКАЗАТЕЛЬ ПО РЕБЕНКУ"]
[{"$nulls":4},"Показатели возможных достижений (возрастные характеристики) к 5 годам"]
[{"$nulls":4},"Изобразительная деятельность",{"$nulls":9},"Приобщение к искусству",{"$nulls":4},"Конструктивная деятельность"]
[{"$nulls":4},"Рисование ",null,"Лепка ",null,"Аппликация ",null,null,"Народное ДПИ",null,"Прикладное творчество*","Ребенок имеет представления "]
[{"$nulls":4},"Ребенок умеет рисовать отдельные предметы и создавать сюжетные композиции","Ребенок умеет смешивать цвета для получения оттенка","Ребенок владеет способами лепки: прищипывание, вытягивание, сглаживание, вдавливание","Ребенок умеет пользоваться стекой","Ребенок правильно держит ножницы, пользуется ими","Ребенок умеет резать ножницами по прямой","Ребенок умеет вырезать ножницами круглые формы из квадрата и овальные из прямоугольника","Ребенок имеет представления о филимоновской игрушке, элементах филимоновской росписи","Ребенок имеет представления о городецкой игрушке, элементах городецкой росписи",null,"о творческих профессиях (артист, художник, композитор, писатель)","о жанрах и видах искусства (литература, музыка, репродукция, архитектура, скульптура)","о жанрах живописи (натюрморт, портрет, пейзаж)","о произведениях народного искусства (потешки, сказки, песни, хороводы, заклички и др.)","Ребенок имеет представление о театре, выставке, библиотеке","Ребенок может анализировать образец постройки","Ребенок создает постройки разной конструктивной сложности"]
[]
[1,{"$nulls":12},"*",{"$nulls":7},{"$f":"AVERAGE(F12:U12)","v":{"$error":"#DIV/0!"}}]
[2,{"$nulls":12},"*",{"$nulls":7},{"$error":"#DIV/0!"}]
[3,{"$nulls":12},"*",{"$nulls":7},{"$error":"#DIV/0!"}]
[4,{"$nulls":12},"*",{"$nulls":7},{"$error":"#DIV/0!"}]
[5,{"$nulls":12},"*",{"$nulls":7},{"$error":"#DIV/0!"}]
[6,{"$nulls":12},"*",{"$nulls":7},{"$error":"#DIV/0!"}]
[7,{"$nulls":12},"*",{"$nulls":7},{"$error":"#DIV/0!"}]
[8,{"$nulls":12},"*",{"$nulls":7},{"$error":"#DIV/0!"}]
[9,{"$nulls":12},"*",{"$nulls":7},{"$error":"#DIV/0!"}]
[10,{"$nulls":12},"*",{"$nulls":7},{"$error":"#DIV/0!"}]
[11,{"$nulls":12},"*",{"$nulls":7},{"$error":"#DIV/0!"}]
[12,{"$nulls":12},"*",{"$nulls":7},{"$error":"#DIV/0!"}]
[13,{"$nulls":12},"*",{"$nulls":7},{"$error":"#DIV/0!"}]
[14,{"$nulls":12},"*",{"$nulls":7},{"$error":"#DIV/0!"}]
[15,{"$nulls":12},"*",{"$nulls":7},{"$error":"#DIV/0!"}]
[16,{"$nulls":12},"*",{"$nulls":7},{"$error":"#DIV/0!"}]
[17,{"$nulls":12},"*",{"$nulls":7},{"$error":"#DIV/0!"}]
[18,{"$nulls":12},"*",{"$nulls":7},{"$error":"#DIV/0!"}]
[19,{"$nulls":12},"*",{"$nulls":7},{"$error":"#DIV/0!"}]
[20,{"$nulls":12},"*",{"$nulls":7},{"$error":"#DIV/0!"}]
[21,{"$nulls":12},"*",{"$nulls":7},{"$error":"#DIV/0!"}]
[22,{"$nulls":12},"*",{"$nulls":7},{"$error":"#DIV/0!"}]
[23,{"$nulls":12},"*",{"$nulls":7},{"$error":"#DIV/0!"}]
[24,{"$nulls":12},"*",{"$nulls":7},{"$error":"#DIV/0!"}]
[25,{"$nulls":12},"*",{"$nulls":7},{"$error":"#DIV/0!"}]
[26,{"$nulls":12},"*",{"$nulls":7},{"$error":"#DIV/0!"}]
[27,{"$nulls":12},"*",{"$nulls":7},{"$error":"#DIV/0!"}]
[28,{"$nulls":12},"*",{"$nulls":7},{"$error":"#DIV/0!"}]
[29,{"$nulls":12},"*",{"$nulls":7},{"$error":"#DIV/0!"}]
[30,{"$nulls":12},"*",{"$nulls":7},{"$error":"#DIV/0!"}]
[null,"СРЕДНИЙ ПОКАЗАТЕЛЬ ПО ГРУППЕ",{"$nulls":19},{"$f":"AVERAGE(V12:V41)","v":{"$error":"#DIV/0!"}}]
[null,"Ф.И.О, должность специалиста(ов)____________________________________________________________________________________________________________________________________________________________________________________________________________________________________"]
[null,"© Автор-составитель Кулекина И.А., СПБ, 2023"]